[Event "*** Titled Tuesday Blitz"]
[Site "Chess.com"]
[Date "2018.07.03"]
[Round "1"]
[White "sergeikim"]
[Black "Paralinch"]
[Result "0-1"]
[WhiteElo "2423"]
[BlackElo "2786"]
[TimeControl "180+2"]
[EndTime "13:08:16 PDT"]
[Termination "Paralinch won by checkmate"]

1. d4 {[%clk 0:02:59.9]} 1... d5 {[%clk 0:03:00.5]} 2. c4 {[%clk 0:03:00.5]}
2... c6 {[%clk 0:03:01.6]} 3. Nf3 {[%clk 0:02:59.2]} 3... Nf6 {[%clk 0:03:02.4]}
4. Qc2 {[%clk 0:02:59.6]} 4... dxc4 {[%clk 0:03:02]} 5. Qxc4 {[%clk 0:02:59.7]}
5... Bg4 {[%clk 0:03:02.9]} 6. Nbd2 {[%clk 0:02:58.8]} 6... Nbd7 {[%clk
0:02:59.8]} 7. e3 {[%clk 0:02:59.5]} 7... e6 {[%clk 0:03:00]} 8. Bd3 {[%clk
0:02:56.1]} 8... Be7 {[%clk 0:02:56.8]} 9. O-O {[%clk 0:02:56.6]} 9... O-O
{[%clk 0:02:57.4]} 10. b4 {[%clk 0:02:57.4]} 10... a5 {[%clk 0:02:52.7]} 11. b5
{[%clk 0:02:54.5]} 11... Nb6 {[%clk 0:02:52.3]} 12. Qc2 {[%clk 0:02:54.8]} 12...
cxb5 {[%clk 0:02:51.5]} 13. Bxb5 {[%clk 0:02:54.8]} 13... Rc8 {[%clk 0:02:49.7]}
14. Qb2 {[%clk 0:02:44.8]} 14... Bb4 {[%clk 0:02:46.7]} 15. Qb3 {[%clk
0:02:27.7]} 15... Bf5 {[%clk 0:02:47.2]} 16. a3 {[%clk 0:02:07.5]} 16... Bc2
{[%clk 0:02:29.1]} 17. Qa2 {[%clk 0:02:06.6]} 17... Bd6 {[%clk 0:02:14.1]} 18.
a4 {[%clk 0:02:00.7]} 18... Nbd5 {[%clk 0:02:14.8]} 19. Ba3 {[%clk 0:01:58.9]}
19... Nc3 {[%clk 0:02:11]} 20. Qb2 {[%clk 0:01:56.1]} 20... Bxa4 {[%clk
0:02:01.1]} 21. Bxd6 {[%clk 0:01:52.1]} 21... Bxb5 {[%clk 0:02:02.3]} 22. Bxf8
{[%clk 0:01:50.2]} 22... Bxf1 {[%clk 0:02:03.1]} 23. Nxf1 {[%clk 0:01:45.1]}
23... Kxf8 {[%clk 0:01:59]} 24. Qxb7 {[%clk 0:01:44.9]} 24... Nd7 {[%clk
0:01:42.1]} 25. h3 {[%clk 0:01:25.2]} 25... a4 {[%clk 0:01:41.2]} 26. N1d2
{[%clk 0:01:21.6]} 26... Qc7 {[%clk 0:01:38.3]} 27. Qb4+ {[%clk 0:01:19.7]}
27... Kg8 {[%clk 0:01:38.7]} 28. g3 {[%clk 0:01:16.7]} 28... h6 {[%clk
0:01:36.6]} 29. Kg2 {[%clk 0:01:14.2]} 29... Rb8 {[%clk 0:01:36.5]} 30. Qc4
{[%clk 0:01:11.9]} 30... Qxc4 {[%clk 0:01:36.3]} 31. Nxc4 {[%clk 0:01:12.8]}
31... Rb4 {[%clk 0:01:37.8]} 32. Nfd2 {[%clk 0:01:12.2]} 32... Nb8 {[%clk
0:01:22.5]} 33. Ra3 {[%clk 0:01:10.2]} 33... Nb5 {[%clk 0:01:22.9]} 34. Ra2
{[%clk 0:01:11]} 34... Nc6 {[%clk 0:01:23.3]} 35. Na3 {[%clk 0:01:08.3]} 35...
Nxa3 {[%clk 0:01:13.8]} 36. Rxa3 {[%clk 0:01:08.9]} 36... Na7 {[%clk 0:01:15.3]}
37. Rc3 {[%clk 0:01:02.7]} 37... Rb2 {[%clk 0:01:04.2]} 38. Ne4 {[%clk
0:00:58.7]} 38... Nb5 {[%clk 0:01:04.3]} 39. Rc8+ {[%clk 0:00:58.8]} 39... Kh7
{[%clk 0:01:05.2]} 40. Ra8 {[%clk 0:00:58.4]} 40... a3 {[%clk 0:01:06.4]} 41.
Nc5 {[%clk 0:00:56.5]} 41... a2 {[%clk 0:00:55.4]} 42. Nd3 {[%clk 0:00:48.2]}
42... Rd2 {[%clk 0:00:54.6]} 43. Nb4 {[%clk 0:00:48.9]} 43... Nc3 {[%clk
0:00:55.9]} 44. Kf3 {[%clk 0:00:45.9]} 44... Rb2 {[%clk 0:00:56.6]} 45. Nxa2
{[%clk 0:00:42.5]} 45... Rxa2 {[%clk 0:00:57.1]} 46. Rb8 {[%clk 0:00:42.5]}
46... Nd1 {[%clk 0:00:57.1]} 47. Rb7 {[%clk 0:00:43.2]} 47... Rxf2+ {[%clk
0:00:55.6]} 48. Ke4 {[%clk 0:00:43.4]} 48... Rf5 {[%clk 0:00:51.5]} 49. g4
{[%clk 0:00:43]} 49... Nf2# {[%clk 0:00:52.4]} 0-1

[Event "*** Titled Tuesday Blitz"]
[Site "Chess.com"]
[Date "2018.07.03"]
[Round "1"]
[White "The_Unbeatable_One"]
[Black "HanSchut"]
[Result "1-0"]
[WhiteElo "2619"]
[BlackElo "2283"]
[TimeControl "180+2"]
[EndTime "13:08:21 PDT"]
[Termination "The_Unbeatable_One won by resignation"]

1. e4 {[%clk 0:03:01.5]} 1... c5 {[%clk 0:02:58.7]} 2. Nf3 {[%clk 0:03:02]} 2...
d6 {[%clk 0:02:59.7]} 3. d4 {[%clk 0:03:03]} 3... cxd4 {[%clk 0:03:01.6]} 4.
Nxd4 {[%clk 0:03:04.7]} 4... Nf6 {[%clk 0:03:02.9]} 5. Nc3 {[%clk 0:03:04.6]}
5... a6 {[%clk 0:03:04.4]} 6. Be3 {[%clk 0:03:05.4]} 6... e5 {[%clk 0:03:05.5]}
7. Nf3 {[%clk 0:03:06.4]} 7... Qc7 {[%clk 0:03:02.8]} 8. a4 {[%clk 0:03:06.2]}
8... Be7 {[%clk 0:03:02.8]} 9. a5 {[%clk 0:03:06.6]} 9... Be6 {[%clk 0:02:57.4]}
10. Be2 {[%clk 0:03:05.1]} 10... Nbd7 {[%clk 0:02:56.6]} 11. O-O {[%clk
0:03:06]} 11... O-O {[%clk 0:02:51.1]} 12. Ng5 {[%clk 0:03:06.3]} 12... Bc4
{[%clk 0:02:49.6]} 13. Ra4 {[%clk 0:03:06.4]} 13... Bxe2 {[%clk 0:02:44.7]} 14.
Qxe2 {[%clk 0:03:07.2]} 14... Rac8 {[%clk 0:02:32.2]} 15. Nf3 {[%clk 0:03:06.7]}
15... Qc6 {[%clk 0:02:22.4]} 16. Rd1 {[%clk 0:02:52]} 16... Rfe8 {[%clk
0:02:10.4]} 17. h3 {[%clk 0:02:32.8]} 17... Bf8 {[%clk 0:02:08.9]} 18. Ne1
{[%clk 0:02:20.6]} 18... Nc5 {[%clk 0:01:49.9]} 19. Bxc5 {[%clk 0:02:19.6]}
19... dxc5 {[%clk 0:01:51.8]} 20. Nf3 {[%clk 0:02:12.3]} 20... Qc7 {[%clk
0:01:47.6]} 21. Nb1 {[%clk 0:01:31.8]} 21... Qc6 {[%clk 0:01:37.1]} 22. b3
{[%clk 0:01:29.2]} 22... h6 {[%clk 0:01:25.8]} 23. Rd3 {[%clk 0:01:26.8]} 23...
Qe6 {[%clk 0:01:21.8]} 24. Nbd2 {[%clk 0:01:25.2]} 24... Nh5 {[%clk 0:01:17.7]}
25. g3 {[%clk 0:01:07]} 25... Qxh3 {[%clk 0:01:14.6]} 26. Nc4 {[%clk 0:00:58.4]}
26... f6 {[%clk 0:00:51.3]} 27. Ne3 {[%clk 0:00:54.1]} 27... g6 {[%clk
0:00:25.1]} 28. Nh4 {[%clk 0:00:53.6]} 28... Kh7 {[%clk 0:00:21.4]} 29. Qd1
{[%clk 0:00:47.6]} 29... Be7 {[%clk 0:00:21.3]} 30. Nef5 {[%clk 0:00:38.3]}
30... Bf8 {[%clk 0:00:08.5]} 31. g4 {[%clk 0:00:38.5]} 31... Nf4 {[%clk
0:00:07.4]} 32. Rxh3 {[%clk 0:00:38.5]} 32... Nxh3+ {[%clk 0:00:08]} 33. Kh2
{[%clk 0:00:39.2]} 33... gxf5 {[%clk 0:00:09.1]} 34. Kxh3 {[%clk 0:00:39.5]}
34... fxg4+ {[%clk 0:00:09.8]} 35. Kxg4 {[%clk 0:00:40.7]} 35... Be7 {[%clk
0:00:10]} 36. Nf5 {[%clk 0:00:36.3]} 36... Rg8+ {[%clk 0:00:11.9]} 37. Kf3
{[%clk 0:00:36.9]} 37... Rcd8 {[%clk 0:00:13.3]} 38. Qh1 {[%clk 0:00:36.9]}
38... Bf8 {[%clk 0:00:12.2]} 39. Ra1 {[%clk 0:00:37]} 39... Rg5 {[%clk
0:00:12.2]} 40. Rd1 {[%clk 0:00:37.2]} 1-0

[Event "*** Titled Tuesday Blitz"]
[Site "Chess.com"]
[Date "2018.07.03"]
[Round "1"]
[White "tgpgoat"]
[Black "plouarzel"]
[Result "0-1"]
[WhiteElo "1980"]
[BlackElo "2472"]
[TimeControl "180+2"]
[EndTime "13:08:29 PDT"]
[Termination "plouarzel won by resignation"]

1. Nf3 {[%clk 0:02:58.6]} 1... d6 {[%clk 0:02:57.8]} 2. d4 {[%clk 0:02:58.8]}
2... Nf6 {[%clk 0:02:58.1]} 3. Bg5 {[%clk 0:02:58.3]} 3... Nbd7 {[%clk
0:02:58.1]} 4. Nbd2 {[%clk 0:02:58.6]} 4... h6 {[%clk 0:02:58.2]} 5. Bh4 {[%clk
0:02:59]} 5... g5 {[%clk 0:02:58.7]} 6. Bg3 {[%clk 0:02:59.7]} 6... Bg7 {[%clk
0:02:55.4]} 7. e4 {[%clk 0:03:00]} 7... Nh5 {[%clk 0:02:47.3]} 8. c3 {[%clk
0:02:59.3]} 8... c5 {[%clk 0:02:37.3]} 9. h3 {[%clk 0:02:46.2]} 9... Nxg3 {[%clk
0:02:36.1]} 10. fxg3 {[%clk 0:02:46.9]} 10... cxd4 {[%clk 0:02:37.6]} 11. cxd4
{[%clk 0:02:47.2]} 11... Nf6 {[%clk 0:02:33.3]} 12. Bd3 {[%clk 0:02:46.4]} 12...
Nh5 {[%clk 0:02:30.8]} 13. Nf1 {[%clk 0:02:29.7]} 13... Qa5+ {[%clk 0:02:26.3]}
14. Qd2 {[%clk 0:02:27.6]} 14... Qxd2+ {[%clk 0:02:26.3]} 15. Kxd2 {[%clk
0:02:25.7]} 15... Bd7 {[%clk 0:02:20.1]} 16. Ke3 {[%clk 0:02:20.8]} 16... Rc8
{[%clk 0:02:18.5]} 17. g4 {[%clk 0:02:17.2]} 17... Nf4 {[%clk 0:02:18.5]} 18. g3
{[%clk 0:02:12.8]} 18... Nxd3 {[%clk 0:02:11.5]} 19. Kxd3 {[%clk 0:02:13.1]}
19... Bb5+ {[%clk 0:02:12.9]} 20. Kd2 {[%clk 0:02:12.1]} 20... O-O {[%clk
0:02:10.8]} 21. Ne3 {[%clk 0:02:12]} 21... e6 {[%clk 0:02:10]} 22. Rhc1 {[%clk
0:02:09]} 22... Rfd8 {[%clk 0:02:04.3]} 23. Rxc8 {[%clk 0:02:07.9]} 23... Rxc8
{[%clk 0:02:06.2]} 24. h4 {[%clk 0:02:00.8]} 24... Bf6 {[%clk 0:01:59.6]} 25. b3
{[%clk 0:01:50.5]} 25... Kf8 {[%clk 0:01:52.8]} 26. h5 {[%clk 0:01:49]} 26...
Ke7 {[%clk 0:01:52.1]} 27. a4 {[%clk 0:01:41.2]} 27... Bd7 {[%clk 0:01:36.2]}
28. Rc1 {[%clk 0:01:38.4]} 28... Rxc1 {[%clk 0:01:36]} 29. Kxc1 {[%clk
0:01:37.8]} 29... Bc6 {[%clk 0:01:36.5]} 30. d5 {[%clk 0:01:35.8]} 30... Be8
{[%clk 0:01:34.1]} 31. Kd2 {[%clk 0:01:32.5]} 31... Bd7 {[%clk 0:01:28.1]} 32.
Kd3 {[%clk 0:01:32.1]} 32... Kd8 {[%clk 0:01:26]} 33. Kd2 {[%clk 0:01:11.3]}
33... Kc7 {[%clk 0:01:21.5]} 34. Kd3 {[%clk 0:01:11.4]} 34... a5 {[%clk
0:01:16.6]} 35. Kd2 {[%clk 0:01:07.7]} 35... b5 {[%clk 0:01:09.6]} 36. axb5
{[%clk 0:01:00.4]} 36... Bxb5 {[%clk 0:01:11.1]} 37. Nc4 {[%clk 0:00:58.9]}
37... a4 {[%clk 0:01:05.2]} 38. Kc2 {[%clk 0:00:56.5]} 38... Bxc4 {[%clk
0:00:53.6]} 39. bxc4 {[%clk 0:00:55.5]} 39... Kb6 {[%clk 0:00:55]} 40. Nd2
{[%clk 0:00:16.2]} 40... Kc5 {[%clk 0:00:48]} 41. Kd3 {[%clk 0:00:15]} 41... Be5
{[%clk 0:00:47.9]} 42. Nb3+ {[%clk 0:00:14.6]} 42... axb3 {[%clk 0:00:47.4]} 0-1

[Event "*** Titled Tuesday Blitz"]
[Site "Chess.com"]
[Date "2018.07.03"]
[Round "1"]
[White "mishanick"]
[Black "Bauxi435"]
[Result "1-0"]
[WhiteElo "2868"]
[BlackElo "2431"]
[TimeControl "180+2"]
[EndTime "13:08:30 PDT"]
[Termination "mishanick won by resignation"]

1. e4 {[%clk 0:02:58.8]} 1... c5 {[%clk 0:02:59.9]} 2. Nf3 {[%clk 0:02:55]} 2...
e6 {[%clk 0:02:59.9]} 3. d4 {[%clk 0:02:54.9]} 3... cxd4 {[%clk 0:03:00.3]} 4.
Nxd4 {[%clk 0:02:54.8]} 4... Nf6 {[%clk 0:03:01.6]} 5. Nc3 {[%clk 0:02:52.9]}
5... Nc6 {[%clk 0:03:02.3]} 6. Ndb5 {[%clk 0:02:52.2]} 6... Bc5 {[%clk
0:03:02.8]} 7. Nd6+ {[%clk 0:02:47.4]} 7... Ke7 {[%clk 0:03:03.6]} 8. Nc4 {[%clk
0:02:42.3]} 8... d5 {[%clk 0:02:59.2]} 9. exd5 {[%clk 0:02:42.2]} 9... Nxd5
{[%clk 0:03:00]} 10. Ne4 {[%clk 0:02:39.7]} 10... Bb6 {[%clk 0:02:44.1]} 11. Qg4
{[%clk 0:02:38.9]} 11... Kf8 {[%clk 0:02:42.4]} 12. Bg5 {[%clk 0:02:37.9]} 12...
f6 {[%clk 0:02:38.9]} 13. Bh4 {[%clk 0:02:38.8]} 13... e5 {[%clk 0:02:27.6]} 14.
Qg3 {[%clk 0:02:35.8]} 14... Bf5 {[%clk 0:02:09.1]} 15. Bd3 {[%clk 0:02:36.7]}
15... Bxe4 {[%clk 0:01:55.1]} 16. Bxe4 {[%clk 0:02:35.3]} 16... Nf4 {[%clk
0:01:56.6]} 17. Qa3+ {[%clk 0:02:32]} 17... Qe7 {[%clk 0:01:49.2]} 18. Qxe7+
{[%clk 0:02:28.9]} 18... Kxe7 {[%clk 0:01:49.8]} 19. O-O {[%clk 0:02:24.9]}
19... Bc5 {[%clk 0:01:44.2]} 20. Rfd1 {[%clk 0:02:22.9]} 20... g5 {[%clk
0:01:41]} 21. Bg3 {[%clk 0:02:12.5]} 21... Ne6 {[%clk 0:01:33]} 22. c3 {[%clk
0:02:11.4]} 22... a6 {[%clk 0:01:33.4]} 23. Kf1 {[%clk 0:02:08.8]} 23... h5
{[%clk 0:01:29.7]} 24. f3 {[%clk 0:02:07.7]} 24... h4 {[%clk 0:01:30.4]} 25. Bf2
{[%clk 0:02:08.9]} 25... Bxf2 {[%clk 0:01:29.3]} 26. Kxf2 {[%clk 0:02:07.9]}
26... Rad8 {[%clk 0:01:30.6]} 27. Ne3 {[%clk 0:01:53.2]} 27... Kf7 {[%clk
0:01:16.4]} 28. b4 {[%clk 0:01:48.9]} 28... Nf4 {[%clk 0:01:09.1]} 29. a4 {[%clk
0:01:36.4]} 29... Rxd1 {[%clk 0:00:48]} 30. Rxd1 {[%clk 0:01:38.3]} 30... Rd8
{[%clk 0:00:49.5]} 31. Rxd8 {[%clk 0:01:29.9]} 31... Nxd8 {[%clk 0:00:51.4]} 32.
g3 {[%clk 0:01:31.2]} 32... hxg3+ {[%clk 0:00:51.5]} 33. hxg3 {[%clk 0:01:33.1]}
33... Nfe6 {[%clk 0:00:52.9]} 34. Nc4 {[%clk 0:01:34]} 34... Ke7 {[%clk
0:00:52.9]} 35. Na5 {[%clk 0:01:34.6]} 35... b6 {[%clk 0:00:52]} 36. Nc4 {[%clk
0:01:35.4]} 36... b5 {[%clk 0:00:48.9]} 37. axb5 {[%clk 0:01:37.3]} 37... axb5
{[%clk 0:00:50]} 38. Na3 {[%clk 0:01:38.9]} 38... Nc7 {[%clk 0:00:48.8]} 39. Bd3
{[%clk 0:01:39.9]} 39... Kd6 {[%clk 0:00:45.8]} 40. Nxb5+ {[%clk 0:01:38.7]}
40... Nxb5 {[%clk 0:00:47.1]} 41. Bxb5 {[%clk 0:01:40.6]} 41... Ne6 {[%clk
0:00:46.3]} 42. Bd3 {[%clk 0:01:41.6]} 42... g4 {[%clk 0:00:45.4]} 43. fxg4
{[%clk 0:01:41.5]} 43... Ng5 {[%clk 0:00:46.1]} 44. Ke3 {[%clk 0:01:42]} 44...
Kd5 {[%clk 0:00:46.9]} 45. c4+ {[%clk 0:01:43]} 45... Kd6 {[%clk 0:00:48.1]} 46.
Be4 {[%clk 0:01:44.2]} 46... Ne6 {[%clk 0:00:48]} 47. c5+ {[%clk 0:01:45.2]}
47... Kc7 {[%clk 0:00:48.8]} 48. Kd3 {[%clk 0:01:44.1]} 48... Nd4 {[%clk
0:00:49.4]} 49. Kc4 {[%clk 0:01:34.2]} 49... Ne2 {[%clk 0:00:50.2]} 50. b5
{[%clk 0:01:35.5]} 50... Nxg3 {[%clk 0:00:51.2]} 51. b6+ {[%clk 0:01:37.3]}
51... Kc8 {[%clk 0:00:50.3]} 52. Bd5 {[%clk 0:01:35.5]} 52... Ne2 {[%clk
0:00:49.5]} 53. c6 {[%clk 0:01:36.1]} 53... Nd4 {[%clk 0:00:49.8]} 54. c7 {[%clk
0:01:36.2]} 54... Kd7 {[%clk 0:00:45.5]} 55. Kc5 {[%clk 0:01:36.5]} 55... Kc8
{[%clk 0:00:42.6]} 56. Bc4 {[%clk 0:01:29.8]} 56... Kb7 {[%clk 0:00:40.7]} 57.
Ba6+ {[%clk 0:01:30.1]} 57... Kxa6 {[%clk 0:00:40.5]} 58. c8=Q+ {[%clk 0:01:32]}
1-0

[Event "*** Titled Tuesday Blitz"]
[Site "Chess.com"]
[Date "2018.07.03"]
[Round "1"]
[White "asms9699"]
[Black "maheswaran26"]
[Result "0-1"]
[WhiteElo "2452"]
[BlackElo "1997"]
[TimeControl "180+2"]
[EndTime "13:08:30 PDT"]
[Termination "maheswaran26 won by resignation"]

1. c4 {[%clk 0:03:00.4]} 1... Nf6 {[%clk 0:02:59.1]} 2. g3 {[%clk 0:03:01.1]}
2... g6 {[%clk 0:02:59.1]} 3. Bg2 {[%clk 0:03:02.6]} 3... Bg7 {[%clk 0:02:59.9]}
4. Nf3 {[%clk 0:03:03.6]} 4... O-O {[%clk 0:03:00.3]} 5. O-O {[%clk 0:03:05.1]}
5... d6 {[%clk 0:03:00.4]} 6. Nc3 {[%clk 0:03:06]} 6... e5 {[%clk 0:02:59.8]} 7.
d3 {[%clk 0:03:07]} 7... Nc6 {[%clk 0:02:56.8]} 8. b3 {[%clk 0:03:07.7]} 8...
Bf5 {[%clk 0:02:49.3]} 9. Bb2 {[%clk 0:03:06.2]} 9... a5 {[%clk 0:02:42.3]} 10.
Rc1 {[%clk 0:03:05.9]} 10... Qd7 {[%clk 0:02:32.1]} 11. Nd5 {[%clk 0:03:04.3]}
11... Ne8 {[%clk 0:02:25.4]} 12. d4 {[%clk 0:02:48]} 12... a4 {[%clk 0:02:14.8]}
13. dxe5 {[%clk 0:02:45.4]} 13... dxe5 {[%clk 0:02:10.6]} 14. b4 {[%clk
0:02:26.9]} 14... e4 {[%clk 0:02:05.5]} 15. Nd4 {[%clk 0:02:16]} 15... Nxd4
{[%clk 0:02:03.6]} 16. Bxd4 {[%clk 0:02:16.9]} 16... Bxd4 {[%clk 0:02:00.9]} 17.
Qxd4 {[%clk 0:02:18.8]} 17... c6 {[%clk 0:02:00.4]} 18. Nf6+ {[%clk 0:02:17]}
18... Nxf6 {[%clk 0:02:00.6]} 19. Qxf6 {[%clk 0:02:18.9]} 19... Qd8 {[%clk
0:02:00.9]} 20. Qc3 {[%clk 0:02:15.9]} 20... Qe7 {[%clk 0:01:57.8]} 21. Rfd1
{[%clk 0:02:12.1]} 21... Rfd8 {[%clk 0:01:57.2]} 22. a3 {[%clk 0:02:12]} 22...
h5 {[%clk 0:01:53.5]} 23. h4 {[%clk 0:02:11]} 23... Bg4 {[%clk 0:01:52.6]} 24.
Qc2 {[%clk 0:02:08.6]} 24... e3 {[%clk 0:01:51.3]} 25. f4 {[%clk 0:02:01.7]}
25... Bf5 {[%clk 0:01:49.6]} 26. Qc3 {[%clk 0:01:55.5]} 26... Bg4 {[%clk
0:01:46.4]} 27. Qc2 {[%clk 0:01:50.8]} 27... Bf5 {[%clk 0:01:45.7]} 28. Qc3
{[%clk 0:01:51.1]} 28... Bg4 {[%clk 0:01:45.6]} 29. Kf1 {[%clk 0:01:52]} 29...
Rd2 {[%clk 0:01:38.9]} 30. Rxd2 {[%clk 0:01:32]} 30... exd2 {[%clk 0:01:39.6]}
31. Qxd2 {[%clk 0:01:31.9]} 31... Rd8 {[%clk 0:01:36.4]} 32. Qe1 {[%clk
0:01:30.3]} 32... Qe3 {[%clk 0:01:35.6]} 33. Rc3 {[%clk 0:01:27.2]} 33... Bxe2+
{[%clk 0:01:35.1]} 34. Qxe2 {[%clk 0:01:24.5]} 34... Qxc3 {[%clk 0:01:35.9]} 35.
Kg1 {[%clk 0:01:15.1]} 35... Qxa3 {[%clk 0:01:31.9]} 36. Qe7 {[%clk 0:01:14]}
36... Qc1+ {[%clk 0:01:30]} 37. Kh2 {[%clk 0:01:14.4]} 37... Qd2 {[%clk
0:01:30.3]} 38. b5 {[%clk 0:01:13.9]} 38... cxb5 {[%clk 0:01:27.5]} 39. cxb5
{[%clk 0:01:12.8]} 39... Qd7 {[%clk 0:01:27.6]} 40. Qb4 {[%clk 0:01:03.9]} 40...
Qd4 {[%clk 0:01:26.5]} 41. Qe7 {[%clk 0:01:04.3]} 41... Qd6 {[%clk 0:01:24.6]}
42. Qxb7 {[%clk 0:01:04.1]} 42... a3 {[%clk 0:01:25.7]} 43. Qa7 {[%clk
0:01:03.9]} 43... Qb4 {[%clk 0:01:19.8]} 44. b6 {[%clk 0:01:03.1]} 44... Qb2
{[%clk 0:01:20]} 45. b7 {[%clk 0:00:50.1]} 45... a2 {[%clk 0:01:20.4]} 46. Qa8
{[%clk 0:00:42.6]} 46... Rf8 {[%clk 0:01:18.6]} 47. Kh3 {[%clk 0:00:40.1]} 47...
a1=Q {[%clk 0:01:16.4]} 48. Qc8 {[%clk 0:00:40.5]} 48... Qab1 {[%clk 0:01:11.9]}
49. Qc6 {[%clk 0:00:33.2]} 49... Qf5+ {[%clk 0:01:11.8]} 50. Kh2 {[%clk
0:00:32.1]} 50... Qfc2 {[%clk 0:01:12.2]} 51. Qd5 {[%clk 0:00:26.7]} 51... Qxg2+
{[%clk 0:01:12.4]} 0-1

[Event "*** Titled Tuesday Blitz"]
[Site "Chess.com"]
[Date "2018.07.03"]
[Round "1"]
[White "kleinebeer98"]
[Black "chesstatour"]
[Result "1-0"]
[WhiteElo "2480"]
[BlackElo "2038"]
[TimeControl "180+2"]
[EndTime "13:08:33 PDT"]
[Termination "kleinebeer98 won by resignation"]

1. e4 {[%clk 0:03:01.9]} 1... c6 {[%clk 0:03:00.5]} 2. d4 {[%clk 0:03:02.6]}
2... d5 {[%clk 0:03:02.3]} 3. f3 {[%clk 0:03:03.9]} 3... dxe4 {[%clk 0:03:01.7]}
4. fxe4 {[%clk 0:03:05.8]} 4... e5 {[%clk 0:03:03.2]} 5. Nf3 {[%clk 0:03:07.3]}
5... Bg4 {[%clk 0:03:00.6]} 6. Bc4 {[%clk 0:03:08.8]} 6... Nd7 {[%clk
0:03:00.7]} 7. c3 {[%clk 0:03:08.1]} 7... Bd6 {[%clk 0:02:53.1]} 8. Qb3 {[%clk
0:03:06.5]} 8... Qe7 {[%clk 0:02:31.9]} 9. O-O {[%clk 0:02:55.3]} 9... Ngf6
{[%clk 0:02:21.3]} 10. Bg5 {[%clk 0:02:51.2]} 10... b5 {[%clk 0:01:59.8]} 11.
Bd3 {[%clk 0:02:45.8]} 11... O-O {[%clk 0:01:58.9]} 12. Nh4 {[%clk 0:02:31]}
12... Be6 {[%clk 0:01:38.4]} 13. Qd1 {[%clk 0:02:22.4]} 13... h6 {[%clk
0:01:33.8]} 14. Bxf6 {[%clk 0:02:06.4]} 14... Nxf6 {[%clk 0:01:34.2]} 15. Nf5
{[%clk 0:01:54.9]} 15... Bxf5 {[%clk 0:01:30.7]} 16. Rxf5 {[%clk 0:01:56.6]}
16... exd4 {[%clk 0:01:25.8]} 17. cxd4 {[%clk 0:01:50.7]} 17... Nxe4 {[%clk
0:01:23.2]} 18. Nc3 {[%clk 0:01:35.3]} 18... Nxc3 {[%clk 0:00:36.7]} 19. bxc3
{[%clk 0:01:37.1]} 19... Qh4 {[%clk 0:00:34.2]} 20. g3 {[%clk 0:01:28.8]} 20...
Bxg3 {[%clk 0:00:31.4]} 21. hxg3 {[%clk 0:01:30.6]} 21... Qxg3+ {[%clk
0:00:32.9]} 22. Kf1 {[%clk 0:01:25.2]} 22... Qh3+ {[%clk 0:00:26.5]} 23. Kf2
{[%clk 0:01:22.3]} 23... Qh2+ {[%clk 0:00:23.7]} 24. Kf1 {[%clk 0:01:12.5]}
24... Qh3+ {[%clk 0:00:19.3]} 25. Ke1 {[%clk 0:01:07.6]} 25... Rfe8+ {[%clk
0:00:12.8]} 26. Kd2 {[%clk 0:01:07.7]} 26... Re3 {[%clk 0:00:05.6]} 27. Qf1
{[%clk 0:00:55.4]} 27... Qxf1 {[%clk 0:00:04.1]} 28. Raxf1 {[%clk 0:00:54.5]}
28... Re7 {[%clk 0:00:05.2]} 29. c4 {[%clk 0:00:42.4]} 29... a6 {[%clk
0:00:06.1]} 30. d5 {[%clk 0:00:42.1]} 30... cxd5 {[%clk 0:00:06.2]} 31. Rxd5
{[%clk 0:00:40.8]} 31... bxc4 {[%clk 0:00:03.8]} 32. Bxc4 {[%clk 0:00:42.6]}
32... Raa7 {[%clk 0:00:04.4]} 33. Kd3 {[%clk 0:00:37]} 33... Kh7 {[%clk
0:00:04.5]} 34. Kd4 {[%clk 0:00:37.7]} 34... Red7 {[%clk 0:00:03.6]} 35. Rxd7
{[%clk 0:00:31.6]} 35... Rxd7+ {[%clk 0:00:05.5]} 36. Kc5 {[%clk 0:00:29.9]}
36... Rc7+ {[%clk 0:00:06.6]} 37. Kd4 {[%clk 0:00:29.2]} 37... Rd7+ {[%clk
0:00:06.8]} 38. Bd5 {[%clk 0:00:29.3]} 38... f6 {[%clk 0:00:05.3]} 39. Kc5
{[%clk 0:00:24.7]} 39... Rc7+ {[%clk 0:00:04.5]} 40. Kd6 {[%clk 0:00:25.4]}
40... Rc2 {[%clk 0:00:04.3]} 41. Be4+ {[%clk 0:00:25.9]} 41... g6 {[%clk
0:00:06.2]} 1-0